fUSD/lending_fUSD_20260501
["ID","MTS","AMOUNT","RATE_DAILY","PERIOD"]
[421426967,1777630292000,1680.0,7.538e-05,2]
[421426968,1777630292000,337.0,7.539e-05,2]
[421426972,1777630293000,-150.0,9.095e-05,2]
[421426971,1777630293000,212.0,4.018e-05,2]
[421426970,1777630293000,-150.0,9.095e-05,2]
[421426973,1777630294000,20904.92,6.62e-05,2]
[421426975,1777630294000,-4671.47239084,9.095e-05,2]
[421426976,1777630294000,-72093.3125333,9.095e-05,2]
[421426974,1777630294000,-508.0,9.095e-05,2]
[421426977,1777630294000,-122630.48422709,9.095e-05,2]
[421426979,1777630294000,-1906.6064,9.095e-05,2]
[421426980,1777630294000,-118102.35204375,9.095e-05,2]
[421426982,1777630294000,-1254.41808677,9.095e-05,2]
[421426978,1777630294000,-279.9401,9.095e-05,2]
[421426983,1777630294000,-452.9517951,9.095e-05,2]
[421426984,1777630294000,-437.37640512,9.095e-05,2]
[421426985,1777630294000,-651.0,9.095e-05,2]
[421426986,1777630294000,-388.27807364,9.095e-05,2]
[421426987,1777630294000,-150.0,9.095e-05,2]
[421426988,1777630294000,-320.10600148,9.095e-05,2]
[421426990,1777630294000,-380.52932165,9.095e-05,2]
[421426989,1777630294000,-669.63915708,9.095e-05,2]
[421426981,1777630294000,-161001.72909629,9.095e-05,2]
[421427001,1777630295000,-380.5293217,9.318e-05,2]
[421427000,1777630295000,-150.0,9.28e-05,2]
[421426997,1777630295000,-391.41262268,9.194e-05,2]
[421427003,1777630295000,-3404.180839,9.348e-05,2]
[421426996,1777630295000,-150.0,9.162e-05,2]
[421427002,1777630295000,-150.0,9.339e-05,2]
[421426993,1777630295000,-511159.75997095,9.095e-05,2]
[421426999,1777630295000,-150.0,9.241e-05,2]
[421426995,1777630295000,-150.0,9.104e-05,2]
[421426994,1777630295000,-176054.48296071,9.095e-05,2]
[421426991,1777630295000,-4576.55784816,9.095e-05,2]
[421426992,1777630295000,-1086.8797393,9.095e-05,2]
[421426998,1777630295000,-150.0,9.221e-05,2]
[421427005,1777630295000,-150.0,9.397e-05,2]
[421427012,1777630295000,-357.39631745,9.404e-05,2]
[421427008,1777630295000,-166.23785534,9.397e-05,2]
[421427004,1777630295000,-159.43253569,9.397e-05,2]
[421427019,1777630295000,-1655.35490122,9.404e-05,2]
[421427020,1777630295000,-2271.31682705,9.404e-05,2]
[421427017,1777630295000,-258.117,9.404e-05,2]
[421427016,1777630295000,-65864.04190575,9.404e-05,2]
[421427015,1777630295000,-11936.52880071,9.404e-05,2]
[421427018,1777630295000,-1128.17090217,9.404e-05,2]
[421427010,1777630295000,-130408.66609168,9.404e-05,2]
[421427006,1777630295000,-150.0,9.397e-05,2]
[421427013,1777630295000,-77617.0,9.404e-05,2]
[421427011,1777630295000,-324.93684459,9.404e-05,2]
[421427007,1777630295000,-150.0,9.397e-05,2]
[421427009,1777630295000,-151.0,9.401e-05,2]
[421427014,1777630295000,-95879.03012095,9.404e-05,2]
[421427049,1777630296000,-175.33006025,9.823e-05,2]
[421427044,1777630296000,-213.51768913,9.808e-05,2]
[421427047,1777630296000,-377.0,9.822e-05,2]
[421427046,1777630296000,-377.0,9.816e-05,2]
[421427050,1777630296000,-377.0,9.825e-05,2]
[421427048,1777630296000,-201.66993975,9.823e-05,2]
[421427052,1777630296000,-179.33006025,9.839e-05,2]
[421427051,1777630296000,-197.66993975,9.839e-05,2]
[421427053,1777630296000,-836.63861793,9.862e-05,2]
[421427060,1777630296000,-503.0,9.904e-05,2]
[421427059,1777630296000,-377.0,9.891e-05,2]
[421427056,1777630296000,-377.0,9.883e-05,2]
[421427055,1777630296000,-377.0,9.882e-05,2]
[421427057,1777630296000,-150.0,9.884e-05,2]
[421427058,1777630296000,-12609.0,9.89e-05,2]
[421427045,1777630296000,-377.0,9.812e-05,2]
[421427062,1777630296000,-377.0,9.924e-05,2]
[421427061,1777630296000,-377.0,9.904e-05,2]
[421427071,1777630296000,-377.0,9.993e-05,2]
[421427054,1777630296000,-2354.49138207,9.862e-05,2]
[421427042,1777630296000,-377.0,9.804e-05,2]
[421427037,1777630296000,-78.35975235,9.749e-05,2]
[421427039,1777630296000,-377.0,9.775e-05,2]
[421427064,1777630296000,-377.0,9.932e-05,2]
[421427022,1777630296000,-3830.2548043,9.404e-05,2]
[421427021,1777630296000,-2089.40591051,9.404e-05,2]
[421427024,1777630296000,-247.006774,9.404e-05,2]
[421427023,1777630296000,-247.006774,9.404e-05,2]
[421427025,1777630296000,-247.006774,9.404e-05,2]
[421427026,1777630296000,-247.006774,9.404e-05,2]
[421427027,1777630296000,-250.0,9.49e-05,2]
[421427028,1777630296000,-251.98,9.49e-05,2]
[421427041,1777630296000,-377.0,9.799e-05,2]
[421427031,1777630296000,-153.71890365,9.61e-05,2]
[421427030,1777630296000,-1000.0,9.61e-05,2]
[421427032,1777630296000,-483.65945066,9.61e-05,2]
[421427034,1777630296000,-191.09474138,9.61e-05,2]
[421427033,1777630296000,-362.62164569,9.61e-05,2]
[421427035,1777630296000,-150.0,9.616e-05,2]
[421427036,1777630296000,-298.64024765,9.749e-05,2]
[421427040,1777630296000,-377.0,9.785e-05,2]
[421427043,1777630296000,-163.48231087,9.808e-05,2]
[421427038,1777630296000,-377.0,9.759e-05,2]
[421427029,1777630296000,-1000.0,9.608e-05,2]
[421427067,1777630296000,-377.0,9.947e-05,2]
[421427077,1777630296000,-500.0,0.0001,2]
[421427065,1777630296000,-150.7299202,9.938e-05,2]
[421427093,1777630296000,-151.0,0.0001,2]
[421427092,1777630296000,-151.0,0.0001,2]
[421427087,1777630296000,-151.0,0.0001,2]
[421427096,1777630296000,-151.0,0.0001,2]
[421427095,1777630296000,-151.0,0.0001,2]
[421427097,1777630296000,-355.6725925,0.0001,2]
[421427098,1777630296000,-188.67170873,0.0001,2]
[421427099,1777630296000,-500.73992349,0.0001,2]
[421427105,1777630296000,-1688.19322,0.000102,2]
[421427106,1777630296000,-320.0,0.00010339,2]
[421427102,1777630296000,-377.0,0.00010053,2]
[421427101,1777630296000,-377.0,0.00010044,2]
[421427104,1777630296000,-150.0,0.00010151,2]
[421427100,1777630296000,-500.0,0.0001,2]
[421427103,1777630296000,-377.0,0.00010072,2]
[421427108,1777630296000,-1090.3736546,0.000104,2]
[421427109,1777630296000,-150.0,0.00010418,2]
[421427107,1777630296000,-597.8195554,0.000104,2]
[421427110,1777630296000,-501.6718281,0.00010548,2]
[421427090,1777630296000,-200.0,0.0001,2]
[421427094,1777630296000,-151.0,0.0001,2]
[421427063,1777630296000,-150.0,9.925e-05,2]
[421427091,1777630296000,-151.0,0.0001,2]
[421427084,1777630296000,-151.0,0.0001,2]
[421427068,1777630296000,-471.10592492,9.953e-05,2]
[421427069,1777630296000,-377.0,9.953e-05,2]
[421427070,1777630296000,-377.0,9.953e-05,2]
[421427066,1777630296000,-427.042,9.938e-05,2]
[421427081,1777630296000,-151.0,0.0001,2]
[421427080,1777630296000,-151.0,0.0001,2]
[421427074,1777630296000,-655.18829122,0.0001,2]
[421427082,1777630296000,-151.0,0.0001,2]
[421427083,1777630296000,-151.0,0.0001,2]
[421427072,1777630296000,-564.0,0.0001,2]
[421427076,1777630296000,-151.0,0.0001,2]
[421427075,1777630296000,-1688.19321,0.0001,2]
[421427111,1777630296000,-1688.19322,0.000106,2]
[421427079,1777630296000,-500.0,0.0001,2]
[421427078,1777630296000,-151.0,0.0001,2]
[421427085,1777630296000,-151.0,0.0001,2]
[421427086,1777630296000,-151.0,0.0001,2]
[421427088,1777630296000,-500.0,0.0001,2]
[421427073,1777630296000,-2760.72359666,0.0001,2]
[421427089,1777630296000,-151.0,0.0001,2]
[421427120,1777630297000,-247.006774,0.000107,2]
[421427129,1777630297000,-1212.84671459,0.000109,2]
[421427130,1777630297000,-1212.84671459,0.000109,2]
[421427128,1777630297000,-1212.84671459,0.000109,2]
[421427126,1777630297000,-323.0,0.00010836,2]
[421427133,1777630297000,-377.0,0.00011,2]
[421427144,1777630297000,-253.9939095,0.00011099,2]
[421427138,1777630297000,-174.15365646,0.00011099,2]
[421427145,1777630297000,-253.9939095,0.00011099,2]
[421427122,1777630297000,-247.006774,0.000107,2]
[421427127,1777630297000,-1212.84671459,0.000109,2]
[421427132,1777630297000,-150.0,0.00010989,2]
[421427118,1777630297000,-151.633335,0.000107,2]
[421427131,1777630297000,-1212.84671459,0.000109,2]
[421427125,1777630297000,-1688.19321,0.000108,2]
[421427121,1777630297000,-247.006774,0.000107,2]
[421427124,1777630297000,-151.0,0.000107,2]
[421427117,1777630297000,-84203.06661566,0.000107,2]
[421427116,1777630297000,-270.84112579,0.000107,2]
[421427119,1777630297000,-151.0,0.000107,2]
[421427114,1777630297000,-772.09,0.000107,2]
[421427136,1777630297000,-377.0,0.00011063,2]
[421427115,1777630297000,-72581.68320732,0.000107,2]
[421427112,1777630297000,-200.0,0.00010685,2]
[421427113,1777630297000,-66539.93852468,0.000107,2]
[421427123,1777630297000,-247.006774,0.000107,2]
[421427135,1777630297000,-377.0,0.00011022,2]
[421427134,1777630297000,-1688.19322,0.00011,2]
[421427139,1777630297000,-174.15365643,0.00011099,2]
[421427137,1777630297000,-1212.84671459,0.00011073,2]
[421427167,1777630297000,-3894.0,0.00011415,2]
[421427166,1777630297000,-2338.0,0.00011415,2]
[421427165,1777630297000,-7676.25999999,0.00011415,2]
[421427163,1777630297000,-10995.533306,0.00011415,2]
[421427164,1777630297000,-271.36870595,0.00011415,2]
[421427160,1777630297000,-122157.68003331,0.00011415,2]
[421427162,1777630297000,-901.97472321,0.00011415,2]
[421427158,1777630297000,-200.0,0.000114,2]
[421427161,1777630297000,-1582.5114,0.00011415,2]
[421427159,1777630297000,-312.36670557,0.00011414,2]
[421427157,1777630297000,-161.8748,0.000114,2]
[421427155,1777630297000,-666.0,0.00011399,2]
[421427142,1777630297000,-253.9939095,0.00011099,2]
[421427151,1777630297000,-253.9939095,0.00011254,2]
[421427150,1777630297000,-1663.0,0.00011222,2]
[421427148,1777630297000,-1222.512,0.00011222,2]
[421427156,1777630297000,-54350.455152,0.000114,2]
[421427149,1777630297000,-6037.0,0.00011222,2]
[421427154,1777630297000,-300.0,0.00011399,2]
[421427153,1777630297000,-3791.0,0.0001137,2]
[421427147,1777630297000,-253.9939095,0.00011099,2]
[421427146,1777630297000,-253.9939095,0.00011099,2]
[421427152,1777630297000,-151.0,0.00011315,2]
[421427143,1777630297000,-253.9939095,0.00011099,2]
[421427141,1777630297000,-253.99390952,0.00011099,2]
[421427140,1777630297000,-174.15365643,0.00011099,2]
[421427169,1777630298000,9216.71,6.586e-05,2]
[421427168,1777630298000,300.0,6.619e-05,2]
[421427171,1777630300000,212.0,4.018e-05,2]
[421427170,1777630300000,501.09189769,9.093e-05,2]
[421427172,1777630300000,287.0,9.404e-05,5]
[421427173,1777630312000,500.0,8.651e-05,2]
[421427174,1777630327000,578.20924308,9.157e-05,2]
[421427177,1777630330000,743.50770149,9.157e-05,2]
[421427176,1777630330000,721.12765535,9.157e-05,2]
[421427175,1777630330000,1428.38747117,9.157e-05,2]
[421427178,1777630331000,2481.77914157,9.157e-05,2]
[421427195,1777630339000,10000.0,8.995e-05,2]
[421427179,1777630339000,2833.90688965,8.995e-05,2]
[421427180,1777630339000,10000.01,8.995e-05,2]
[421427181,1777630339000,10000.01,8.995e-05,2]
[421427182,1777630339000,10000.01,8.995e-05,2]
[421427183,1777630339000,10000.01,8.995e-05,2]
[421427194,1777630339000,4439.58424,8.995e-05,2]
[421427187,1777630339000,10000.01,8.995e-05,2]
[421427184,1777630339000,10000.01,8.995e-05,2]
[421427185,1777630339000,10000.01,8.995e-05,2]
[421427189,1777630339000,10000.01,8.995e-05,2]
[421427192,1777630339000,10000.01,8.995e-05,2]
[421427191,1777630339000,10000.01,8.995e-05,2]
[421427190,1777630339000,10000.01,8.995e-05,2]
[421427193,1777630339000,10000.01,8.995e-05,2]
[421427186,1777630339000,10000.01,8.995e-05,2]
[421427188,1777630339000,10000.01,8.995e-05,2]
[421427198,1777630545000,-266.0,8.995e-05,2]
[421427199,1777630545000,-6880.737913,8.995e-05,2]
[421427197,1777630545000,-300.0,8.994e-05,2]
[421427196,1777630545000,-2553.262087,8.95e-05,2]
[421427200,1777630753000,-266.0,8.95e-05,2]
[421427213,1777630953000,-266.0,8.994e-05,2]
[421427214,1777630953000,-266.0,8.993e-05,2]
[421427215,1777630954000,-34.0,8.993e-05,2]
[421427216,1777630954000,-232.0,8.994e-05,2]
[421427217,1777630955000,-266.0,8.994e-05,2]
[421427220,1777630956000,-96.0,8.994e-05,2]
[421427219,1777630956000,-170.0,8.994e-05,2]
[421427218,1777630956000,-266.0,8.994e-05,2]
[421427221,1777630957000,-54.0,8.994e-05,2]
[421427222,1777630957000,-212.0,8.994e-05,2]
[421427224,1777630958000,-178.0,8.994e-05,2]
[421427223,1777630958000,-88.0,8.994e-05,2]
[421427228,1777630959000,-210.0,8.994e-05,2]
[421427227,1777630959000,-56.0,8.994e-05,2]
[421427226,1777630959000,-266.0,8.994e-05,2]
[421427225,1777630959000,3457.62,6.611e-05,2]
[421427229,1777630960000,-266.0,8.994e-05,2]
[421427231,1777630960000,-226.32262397,8.994e-05,2]
[421427230,1777630960000,-39.67737603,8.994e-05,2]
[421427233,1777630961000,-7.67737603,8.994e-05,2]
[421427234,1777630961000,-258.32262397,8.994e-05,2]
[421427232,1777630961000,-266.0,8.994e-05,2]
[421427235,1777630962000,-731.12591746,8.994e-05,2]
[421427236,1777630962000,-468.87408254,8.994e-05,2]
[421427238,1777630963000,-679.42554111,8.994e-05,2]
[421427237,1777630963000,-520.57445889,8.994e-05,2]
[421427239,1777630964000,-310.02300032,8.994e-05,2]
[421427241,1777630964000,238.0,6.611e-05,2]
[421427243,1777630964000,-989.44854143,8.994e-05,2]
[421427240,1777630964000,-889.97699968,8.994e-05,2]
[421427242,1777630964000,-99.47154175,8.994e-05,2]
[421427246,1777630964000,-321.63137539,8.994e-05,2]
[421427244,1777630964000,-111.07991682,8.994e-05,2]
[421427245,1777630964000,-878.36862461,8.994e-05,2]
[421427247,1777630965000,-667.81716604,8.994e-05,2]
[421427248,1777630965000,-532.18283396,8.994e-05,2]
[421427249,1777630966000,-457.26570747,8.994e-05,2]
[421427250,1777630966000,-742.73429253,8.994e-05,2]
[421427252,1777630967000,451.04,8.04e-05,2]
[421427254,1777630967000,-246.7142489,8.994e-05,2]
[421427251,1777630967000,451.04,7.309e-05,2]
[421427255,1777630967000,-502.2457511,8.994e-05,2]
[421427257,1777630967000,-712.79720967,8.994e-05,2]
[421427256,1777630967000,-487.20279033,8.994e-05,2]
[421427253,1777630967000,-451.04,8.771e-05,2]
[421427258,1777630969000,-150.0,8.993e-05,2]
[421427260,1777630969000,-773.34866824,8.994e-05,2]
[421427259,1777630969000,-276.65133176,8.994e-05,2]
[421427262,1777630970000,-983.90012681,8.994e-05,2]
[421427261,1777630970000,-216.09987319,8.994e-05,2]
[421427264,1777630971000,-5.54841462,8.994e-05,2]
[421427263,1777630971000,-341.634,8.815e-05,2]
[421427265,1777630971000,-852.81758538,8.994e-05,2]
[421427268,1777630971000,-989.44854143,8.994e-05,2]
[421427269,1777630971000,-73.92050252,8.994e-05,2]
[421427267,1777630971000,-136.63095605,8.994e-05,2]
[421427266,1777630971000,227.0,0.00010126,5]
[421427274,1777630972000,-495.02341966,8.994e-05,2]
[421427273,1777630972000,-704.97658034,8.994e-05,2]
[421427271,1777630972000,-915.52803891,8.994e-05,2]
[421427272,1777630972000,-284.47196109,8.994e-05,2]
[421427270,1777630972000,260.11,8.669e-05,2]
[421427275,1777630974000,360.64,8.659e-05,2]
[421427277,1777631364000,-494.42512177,8.994e-05,2]
[421427278,1777631365000,-494.42512177,8.994e-05,2]
[421427280,1777631366000,-494.42512177,8.986e-05,2]
[421427279,1777631366000,-494.42512177,8.994e-05,2]
[421427281,1777631368000,-494.42512177,8.986e-05,2]
[421427282,1777631369000,-494.42512177,8.881e-05,2]
[421427283,1777631369000,-300.0,8.88e-05,2]
[421427285,1777631369000,-494.42512177,8.881e-05,2]
[421427284,1777631369000,-194.42512177,8.881e-05,2]
[421427287,1777631370000,-494.42512177,8.881e-05,2]
[421427286,1777631370000,-494.42512177,8.881e-05,2]
[421427289,1777631371000,-494.42512177,8.88e-05,2]
[421427288,1777631371000,-494.42512177,8.88e-05,2]
[421427290,1777631372000,-211.14975646,8.88e-05,2]
[421427291,1777631372000,-283.27536531,8.881e-05,2]
[421427295,1777631374000,-4102.22513779,8.881e-05,2]
[421427294,1777631374000,-160.30222599,8.881e-05,2]
[421427293,1777631374000,-494.42512177,8.881e-05,2]
[421427292,1777631374000,-494.42512177,8.881e-05,2]
[421427297,1777631375000,-494.42512177,8.881e-05,2]
[421427296,1777631375000,-494.42512177,8.881e-05,2]
[421427298,1777631376000,-494.42512177,8.881e-05,2]
[421427299,1777631377000,-3134.4133564,8.881e-05,2]
[421427300,1777631377000,-3134.4133564,8.881e-05,2]
[421427302,1777631378000,-3134.4133564,8.881e-05,2]
[421427301,1777631378000,-3134.4133564,8.881e-05,2]
[421427304,1777631379000,-2462.6551615,8.881e-05,2]
[421427305,1777631379000,-671.7581949,8.986e-05,2]
[421427303,1777631379000,-464.95746611,8.881e-05,2]
[421427308,1777631380000,-10000.0,8.986e-05,2]
[421427307,1777631380000,-3134.4133564,8.986e-05,2]
[421427306,1777631380000,-3134.4133564,8.986e-05,2]
[421427310,1777631381000,-10000.0,8.986e-05,2]
[421427309,1777631381000,-3134.4133564,8.986e-05,2]
[421427311,1777631382000,-3134.4133564,8.986e-05,2]
[421427313,1777631383000,-3134.4133564,8.894e-05,2]
[421427314,1777631383000,-39626.26472,8.894e-05,2]
[421427312,1777631383000,-3134.4133564,8.894e-05,2]
[421427315,1777631383000,-49347.58509519,8.894e-05,2]
[421427317,1777631383000,-23839.30643915,8.894e-05,2]
[421427316,1777631383000,-3134.4133564,8.894e-05,2]
[421427319,1777631384000,-4970.03482846,8.894e-05,2]
[421427318,1777631384000,-284359.81590149,8.894e-05,2]
[421428209,1777631578000,-43525.22473037,8.894e-05,2]
[421428210,1777631696000,-300.00024032,8.894e-05,2]
[421428211,1777631775000,-10000.01,8.894e-05,2]
[421428214,1777631776000,-9850.01,8.894e-05,2]
[421428213,1777631776000,-150.0,8.893e-05,2]
[421428212,1777631776000,-10000.01,8.894e-05,2]
[421428215,1777631777000,-10000.01,8.894e-05,2]
[421428241,1777631778000,-150.0,0.000108,2]
[421428236,1777631778000,-907.74,0.00010278,2]
[421428234,1777631778000,-158.82062297,0.00010153,2]
[421428233,1777631778000,-18500.02,0.0001,2]
[421428232,1777631778000,-151.0,0.0001,2]
[421428228,1777631778000,-360.64,9.741e-05,2]
[421428230,1777631778000,-151.0,0.0001,2]
[421428231,1777631778000,-151.0,0.0001,2]
[421428226,1777631778000,-1001.80802509,9.408e-05,2]
[421428225,1777631778000,-200.0,9.403e-05,2]
[421428239,1777631778000,-150.0,0.000108,2]
[421428224,1777631778000,-5770.91,9.387e-05,2]
[421428229,1777631778000,-255.0,9.783e-05,2]
[421428223,1777631778000,-500.0,9.281e-05,2]
[421428222,1777631778000,-907.74,9.136e-05,2]
[421428221,1777631778000,-73189.185,8.995e-05,2]
[421428220,1777631778000,-153.96205897,8.995e-05,2]
[421428219,1777631778000,-1651.13799109,8.994e-05,2]
[421428218,1777631778000,-1045.3425257,8.986e-05,2]
[421428217,1777631778000,-87635.08753736,8.986e-05,2]
[421428216,1777631778000,-138167.30597582,8.894e-05,2]
[421428227,1777631778000,-451.04,9.502e-05,2]
[421428237,1777631778000,-433.0,0.00010761,2]
[421428249,1777631778000,-150.0,0.00011,2]
[421428235,1777631778000,-451.04,0.00010233,2]
[421428263,1777631778000,-907.74,0.0001142,2]
[421428261,1777631778000,-200.0,0.00011415,2]
[421428262,1777631778000,-179.25378155,0.00011415,2]
[421428260,1777631778000,-259.99,0.00011415,2]
[421428258,1777631778000,-150.0,0.000114,2]
[421428257,1777631778000,-150.0,0.000114,2]
[421428256,1777631778000,-150.0,0.00011354,2]
[421428255,1777631778000,-250.0,0.00011353,2]
[421428253,1777631778000,-150.0,0.000112,2]
[421428250,1777631778000,-150.0,0.00011077,2]
[421428254,1777631778000,-150.0,0.00011262,2]
[421428238,1777631778000,-150.0,0.000108,2]
[421428251,1777631778000,-150.0,0.00011169,2]
[421428252,1777631778000,-150.0,0.000112,2]
[421428240,1777631778000,-150.0,0.000108,2]
[421428243,1777631778000,-150.0,0.000108,2]
[421428246,1777631778000,-151.60583932,0.000109,2]
[421428242,1777631778000,-150.0,0.000108,2]
[421428245,1777631778000,-150.0,0.00010892,2]
[421428247,1777631778000,-451.04,0.00010964,2]
[421428248,1777631778000,-150.0,0.00010985,2]
[421428259,1777631778000,-150.0,0.000114,2]
[421428244,1777631778000,-511.0149388,0.00010867,2]
[421428272,1777631779000,-9599.14089795,0.00011642,2]
[421428274,1777631779000,-150.0,0.00011723,2]
[421428271,1777631779000,-150.0,0.00011631,2]
[421428276,1777631779000,-200.0,0.00011761,2]
[421428273,1777631779000,-200.0,0.00011644,2]
[421428275,1777631779000,-3126.00113627,0.0001176,2]
[421428265,1777631779000,-200.0,0.00011529,2]
[421428267,1777631779000,-150.0,0.000116,2]
[421428268,1777631779000,-150.0,0.000116,2]
[421428264,1777631779000,-150.0,0.00011446,2]
[421428270,1777631779000,-307.0,0.000116,2]
[421428266,1777631779000,-150.0,0.00011538,2]
[421428269,1777631779000,-1000.0,0.000116,2]
[421428277,1777631779000,-674.83,0.000118,2]
[421428280,1777631779000,-736.0,0.00011837,2]
[421428278,1777631779000,-150.0,0.000118,2]
[421428291,1777631779000,-1350.0,0.00011454,2]
[421428292,1777631779000,-23302.72,0.00012,2]
[421428290,1777631779000,-474.41347366,0.00012,2]
[421428289,1777631779000,-29306.23337599,0.00012,2]
[421428279,1777631779000,-150.0,0.00011815,2]
[421428287,1777631779000,-91522.43510734,0.00012,2]
[421428288,1777631779000,-7171.53053447,0.00012,2]
[421428285,1777631779000,-237.11506167,0.0001199,2]
[421428286,1777631779000,-237.11506167,0.0001199,2]
[421428283,1777631779000,-150.0,0.00011908,2]
[421428281,1777631779000,-377.0,0.00011867,2]
[421428282,1777631779000,-1387.21749554,0.000119,2]
[421428284,1777631779000,-237.11506167,0.0001199,2]
[421428296,1777631780000,-477.59231389,0.00012,2]
[421428293,1777631780000,-33.95793539,0.00012,2]
[421428294,1777631780000,-981.56,0.00012,2]
[421428297,1777631780000,-991.93523145,0.00012,2]
[421428298,1777631780000,-1750.14085119,0.00012,2]
[421428295,1777631780000,-380.52932165,0.00012,2]
[421428301,1777631780000,-1.61777356,0.00012,2]
[421428299,1777631780000,394.79878062,7.888e-05,2]
[421428300,1777631780000,-3783.0,0.00012,2]
[421428302,1777631780000,-3533.0,0.00011454,2]
[421428303,1777631780000,-470663.18573203,0.00012,2]
[421428304,1777631780000,-6243.3877218,0.00012,2]
[421428305,1777631781000,166.05,8e-05,2]
[421428308,1777631786000,250.0,8.532e-05,2]
[421428306,1777631786000,250.0,8.677e-05,2]
[421428309,1777631786000,-300.0,8.893e-05,2]
[421428307,1777631786000,250.0,7.944e-05,2]
[421428310,1777631787000,-372.667373,8.849e-05,2]
[421428312,1777631789000,-10000.01,8.894e-05,2]
[421428311,1777631789000,-10000.01,8.894e-05,2]
[421428314,1777631790000,-150.0,8.893e-05,2]
[421428316,1777631790000,-9550.01,8.894e-05,2]
[421428315,1777631790000,-300.0,8.893e-05,2]
[421428313,1777631790000,-10000.01,8.894e-05,2]
[421428317,1777631791000,-10000.01,8.894e-05,2]
[421428321,1777631792000,1447.02360024,8.392e-05,2]
[421428320,1777631792000,-10000.01,8.893e-05,2]
[421428319,1777631792000,-10000.01,8.894e-05,2]
[421428318,1777631792000,200.0,8.307e-05,2]
[421428323,1777631793000,-6191.62088613,8.893e-05,2]
[421428322,1777631793000,-300.0,8.892e-05,2]
[421428325,1777631793000,-3258.38911387,8.894e-05,2]
[421428324,1777631793000,-250.0,8.893e-05,2]
[421428326,1777631793000,-10000.01,8.894e-05,2]
[421428334,1777631794000,-500.0,8.985e-05,2]
[421428327,1777631794000,253.0,7.888e-05,2]
[421428328,1777631794000,-4453.73268613,8.894e-05,2]
[421428329,1777631794000,-470.6269,8.894e-05,2]
[421428332,1777631794000,-544.69950695,8.985e-05,2]
[421428330,1777631794000,-200.0,8.9e-05,2]
[421428331,1777631794000,-500.0,8.985e-05,2]
[421428333,1777631794000,-500.0,8.985e-05,2]
[421428335,1777631794000,-500.0,8.985e-05,2]
[421428338,1777631794000,-500.0,8.985e-05,2]
[421428337,1777631794000,-216.05464647,8.985e-05,2]
[421428343,1777631794000,-1238.82121766,9.01e-05,2]
[421428344,1777631794000,-6928.52618234,9.04e-05,2]
[421428342,1777631794000,-1832.6626,8.794e-05,2]
[421428339,1777631794000,-500.0,8.985e-05,2]
[421428341,1777631794000,-355.21344769,9.01e-05,2]
[421428340,1777631794000,-259.68281276,8.985e-05,2]
[421428336,1777631794000,-500.0,8.985e-05,2]
[421428348,1777631795000,-10000.01,9.04e-05,2]
[421428347,1777631795000,1200.0,8.892e-05,2]
[421428346,1777631795000,300.0,8.892e-05,2]
[421428345,1777631795000,-10000.01,9.04e-05,2]
[421428349,1777631796000,211.43,0.0003,120]
[421428351,1777631796000,-10000.01,9.04e-05,2]
[421428352,1777631796000,216.38,8.098e-05,2]
[421428350,1777631796000,-10000.01,9.04e-05,2]
[421428355,1777631797000,-3757.731,9.509e-05,2]
[421428354,1777631797000,-216.38,9.11e-05,2]
[421428353,1777631797000,-2912.37702669,9.04e-05,2]
[421428356,1777631797000,-295.096,9.509e-05,2]
[421428357,1777631798000,150.0,8.892e-05,2]
[421428358,1777631798000,300.0,8.891e-05,2]
[421428359,1777631799000,1015.0,9e-05,2]
[421428361,1777631821000,1116.07,5.434e-05,2]
[421428360,1777631821000,1116.07,5.163e-05,2]
[421428363,1777631822000,1116.07,5.978e-05,2]
[421428362,1777631822000,1116.07,5.706e-05,2]
[421428364,1777631822000,1116.07,6.25e-05,2]
[421428366,1777631822000,122.2,6.793e-05,2]
[421428367,1777631822000,993.87,6.793e-05,2]
[421428365,1777631822000,1116.07,6.521e-05,2]
[421428372,1777631823000,1116.07,8.152e-05,2]
[421428371,1777631823000,1116.07,7.88e-05,2]